Cogmind - Beta 15 @@@ ROGUE MODE // 2025.06.15 @ 15:43:06 Player: Pancakes Result: Destroyed by J6-0XT(R) with Subdweller Laser Performance ------------- Evolutions (0) 0 Regions Visited (3) 600 Robots Destroyed (12) 60 Value Destroyed (322) 322 Prototype IDs (0) 0 Alien Tech Used (0) 0 Bonus (0) 0 TOTAL SCORE: 982 Bonus ------- None Cogmind --------- Core Integrity 0/250 Matter 289/300 Energy 91/100 System Corruption 0% Temperature Cool (6) Movement Core (50) Location -10/Subcaves Parts ------- > --- POWER (1) -------- (None) > --- PROPULSION (2) --- (None) > --- UTILITY (2) ------ Sensor Array Signal Interpreter > --- WEAPON (2) ------- Light Assault Rifle > --- INVENTORY (5) ---- Small Storage Unit Scrap Shield Grenade Launcher Datajack Peak State ------------ > --- POWER ------------ Light Ion Engine > --- PROPULSION ------- Light Treads Light Treads > --- UTILITY ---------- Heat Sink Small Storage Unit > --- WEAPON ----------- Light Assault Rifle Light Assault Rifle > --- INVENTORY -------- Light Assault Rifle [Rating: 7] Favorites ----------- Power Light Ion Engine Engine Light Ion Engine Propulsion Light Treads Treads Light Treads Utility Heat Sink Device Heat Sink Storage Small Storage Unit Processor Signal Interpreter Weapon Light Assault Rifle Energy Gun Medium Laser Ballistic Gun Light Assault Rifle Launcher Grenade Launcher Build | -11 -10 -10 -10 ------- Run | Yrd Mat Min Sub Slots Evolved . | . . . . Power . | . . . . Propulsion . | . . . . Utility . | . . . . Weapon . | . . . . Parts Attached 14 | 6 7 . 1 Power 2 | 1 1 . . Engine 2 | 1 1 . . Core . | . . . . Reactor . | . . . . Propulsion 4 | 2 1 . 1 Treads 4 | 2 1 . 1 Leg . | . . . . Wheel . | . . . . Hover . | . . . . Flight . | . . . . Utility 4 | 1 3 . . Device 2 | . 2 . . Storage 1 | 1 . . . Processor 1 | . 1 . . Hackware . | . . . . Protection . | . . . . Artifact . | . . . . Weapon 4 | 2 2 . . Energy Gun 1 | . 1 . . Energy Cannon . | . . . . Ballistic Gun 2 | 2 . . . Ballistic Cannon . | . . . . Launcher 1 | . 1 . . Special Weapon . | . . . . Impact Weapon . | . . . . Slashing Weapon . | . . . . Piercing Weapon . | . . . . Special Melee Weapon . | . . . . Unidentified Prototypes . | . . . . Parts Lost 7 | . 1 . 6 Power 2 | . 1 . 1 Propulsion 3 | . . . 3 Utility 1 | . . . 1 Weapon 1 | . . . 1 Highest Loss Streak 6 | . 1 . 6 To Critical Strikes . | . . . . Average Backups 4 | 1 4 5 4 Power . | . . . . Propulsion 1 | . 1 1 . Utility 1 | . . 2 2 Weapon 1 | . 1 1 1 Tool/Special . | . . . . Unused Backups 3 | . 2 . 1 Power 1 | . 1 . . Propulsion . | . . . . Utility . | . . . . Weapon 1 | . 1 . . Tool/Special 1 | . . . 1 Average Slot Usage (%) 97 | . 97 100 97 Engine 13 | . 14 14 13 Treads 27 | . 28 28 27 Device 12 | . 11 14 14 Storage 5 | . 9 . . Processor 8 | . 4 14 14 Energy Gun 7 | . 3 14 12 Ballistic Gun 17 | . 19 14 14 Launcher 3 | . 4 . 1 Peak Build Rating 7 | 6 7 7 7 Average Rating 6 | 4 6 7 6 On Entrance 5 | . 6 7 7 Naked Turns . | . . . . Heaviest Build 13 | 12 13 7 8 Greatest Support 40 | 40 40 40 40 Greatest Overweight (x) 1 | . . . 1 Average Overweight (x) . | . . . . Largest Inventory Capacity 8 | 8 8 5 5 Average Capacity 6 | 7 6 5 5 Most Carried 8 | 3 8 5 5 Average Carried 4 | 1 4 5 4 Final Capacity 8 | 8 5 5 5 Final Carried 5 | 2 5 5 5 Class Distribution -------------------- 100% | Mutant Dominant Class ---------------- Mutant | -10/Materials Mutant | -10/Mines Mutant | -10/Subcaves Resources | -11 -10 -10 -10 ----------- Run | Yrd Mat Min Sub Matter Collected 515 | 209 218 19 69 Remotely . | . . . . Salvage Created 375 | . 234 19 122 Parts 29 | . 13 4 12 Haulers Intercepted 1 | . 1 . . Recyclers Shooed . | . . . . Parts Field Recycled . | . . . . Retrieved Matter . | . . . . Parts Self-Destructed 4 | . . . 4 Prevented . | . . . . Kills | -11 -10 -10 -10 ------- Run | Yrd Mat Min Sub Combat Hostiles Destroyed 7 | . 3 . 4 Guns 6 | . 3 . 3 AOE 1 | . . . 1 Classes Destroyed 6 | . 5 . 1 Builder 1 | . 1 . . Tunneler 2 | . 1 1 . Hauler 1 | . 1 . . Watcher 1 | . 1 . . Grunt 3 | . 3 . . Subdweller 4 | . . . 4 Best Kill Streak 3 | . 3 1 2 Combat Bots Only 2 | . 2 . 2 Max Kills in Single Turn 1 | . 1 1 1 Gunslinging . | . . . . Exploded 1 | . . . 1 Melee . | . . . . Uniques/NPCs Destroyed . | . . . . Combat | -11 -10 -10 -10 -------- Run | Yrd Mat Min Sub Hostile Shots Fired 81 | . 31 . 50 Missed 17 | . 6 . 11 Hits 64 | . 25 . 39 Projectile 64 | . 25 . 39 Critical Strikes 3 | . 3 . . Damage Taken 1134 | . 318 . 816 Core 261 | . 34 . 227 Absorbed by Shields . | . . . . Core Remaining (%) 100 | 100 . . . Volleys Fired 64 | . 41 1 22 Largest 2 | . 2 2 2 Hottest 70 | . 70 70 70 Shots Fired 120 | . 80 2 38 Gun 113 | . 77 2 34 Cannon . | . . . . Launcher 7 | . 3 . 4 Special . | . . . . Kinetic 89 | . 66 1 22 Thermal 24 | . 11 1 12 Explosive 7 | . 3 . 4 Electromagnetic . | . . . . Robot Hit Streak 15 | . 15 3 8 Robot Miss Streak 4 | . 4 . 2 Penetration Max . | . . . . Secondary Targets 1 | . . . 1 Max Gunslinging Chain 1 | . . . 1 Shots Hit Robots 78 | . 47 2 29 Core Hits 29 | . 17 1 11 Critical Kills . | . . . . Critical Parts Destroyed . | . . . . Critical Strikes 1 | . . . 1 Burn 1 | . . . 1 Melee Attacks . | . . . . Impact . | . . . . Slashing . | . . . . Piercing . | . . . . Sneak Attacks . | . . . . Combat Hostiles . | . . . . Follow-up Attacks . | . . . . Damage Inflicted 925 | . 495 23 407 Guns 689 | . 399 23 267 Cannons . | . . . . Explosions 236 | . 96 . 140 Melee . | . . . . Ramming . | . . . . Kinetic 512 | . 361 10 141 Thermal 177 | . 38 13 126 Explosive 236 | . 96 . 140 Electromagnetic . | . . . . Impact . | . . . . Slashing . | . . . . Piercing . | . . . . Highest Corruption . | . . . . Average Corruption . | . . . . Corruption Purged . | . . . . Corruption Blocked . | . . . . Overload Shots . | . . . . Overflow Damage 4 | . 4 . . Projectiles . | . . . . Explosions 4 | . 4 . . Melee . | . . . . Knockbacks . | . . . . Impact . | . . . . Kinetic . | . . . . Secondary . | . . . . Self-Inflicted Damage 13 | . . . 13 Shots 1 | . . . 1 Rammed . | . . . . Targets Rammed . | . . . . Kicked . | . . . . Crushed . | . . . . Highest Temperature 81 | . 81 10 . Average Temperature 33 | . 34 7 . Received Heat Transfer 423 | . 237 . 186 Siege Activations . | . . . . Martial Activations . | . . . . Shielding Activations . | . . . . Robots Disrupted . | . . . . Combat Hostiles . | . . . . Robots Corrupted . | . . . . Combat Hostiles . | . . . . Parts Fried . | . . . . Impact Corruptions . | . . . . Robots Melted . | . . . . Combat Hostiles . | . . . . Parts Melted 2 | . . . 2 Heat Transferred 592 | . 111 37 444 Parts Sabotaged . | . . . . Parts Stolen . | . . . . Parts Stripped . | . . . . Power Chain Reactions . | . . . . Alert | -11 -10 -10 -10 ------- Run | Yrd Mat Min Sub Maximum Alert Level . | . . . . Low Security (%) 100 | 100 100 100 . Level 1 . | . . . . Level 2 . | . . . . Level 3 . | . . . . Level 4 . | . . . . Level 5 . | . . . . High Security . | . . . . Max Security . | . . . . Peak Influence 37 | . 37 5 . Initial . | . . . . Average 7 | . 8 1 . Influence Increases 151 | . 146 5 . Destroy 0b10 Robot/C 60 | . 60 . . Destroy 0b10 Robot/NC 25 | . 20 5 . Destroy Leader 24 | . 24 . . Disable Machine 15 | . 15 . . Destroy Structure 27 | . 27 . . Influence Decreases 151 | . 146 5 . Time Decay 141 | . 136 5 . Lost Part 10 | . 10 . . Squads Dispatched 2 | . 2 . . Investigation . | . . . . Extermination . | . . . . Reinforcement 2 | . 2 . . Assault . | . . . . Garrison . | . . . . Intercept . | . . . . Searches Triggered . | . . . . Construction Impeded . | . . . . Haulers Reinforced . | . . . . Active Scanning Responses . | . . . . Cargo Convoy Interrupts . | . . . . Stealth | -11 -10 -10 -10 --------- Run | Yrd Mat Min Sub Distress Signals 1 | . 1 . . Communications Jammed . | . . . . Distress Signals . | . . . . Times Spotted 20 | . 14 . 6 Peak Tracking Total 3 | . 3 . 3 Tactical Retreats . | . . . . Traps | -11 -10 -10 -10 ------- Run | Yrd Mat Min Sub Traps Triggered . | . . . . Indirectly . | . . . . Trap Hack Attempts . | . . . . Triggered . | . . . . Disarmed . | . . . . Reprogrammed . | . . . . Reused . | . . . . Traps Extracted . | . . . . Installed . | . . . . Triggered . | . . . . Machines | -11 -10 -10 -10 ---------- Run | Yrd Mat Min Sub Machines Disabled 1 | . 1 . . Max in Single Turn 1 | . 1 . . Machines Repaired . | . . . . Machines Dismantled . | . . . . Machines Sabotaged . | . . . . Overloaded Fab Kills . | . . . . Hacking | -11 -10 -10 -10 --------- Run | Yrd Mat Min Sub Machines Accessed . | . . . . Terminals . | . . . . Fabricators . | . . . . Repair Stations . | . . . . Recycling Units . | . . . . Scanalyzers . | . . . . Garrison Access . | . . . . Total Hacks . | . . . . Successful . | . . . . Failed . | . . . . Catastrophic . | . . . . Database Lockouts . | . . . . Manual . | . . . . Terminals . | . . . . Fabricators . | . . . . Repair Stations . | . . . . Recycling Units . | . . . . Scanalyzers . | . . . . Garrison Access . | . . . . Terminal Hacks . | . . . . Fabricator Hacks . | . . . . Repair Station Hacks . | . . . . Recycling Unit Hacks . | . . . . Scanalyzer . | . . . . Garrison Access Hacks . | . . . . Unauthorized Hacks . | . . . . Terminals . | . . . . Fabricators . | . . . . Repair Stations . | . . . . Recycling Units . | . . . . Scanalyzers . | . . . . Garrison Access . | . . . . Data Cores Recovered . | . . . . Used . | . . . . Hacking Detections . | . . . . Full Trace Events . | . . . . Feedback Events . | . . . . Feedback Blocked . | . . . . Robot Schematics Acquired . | . . . . Robots Built . | . . . . Authchips . | . . . . Time . | . . . . Total Robot Build Rating . | . . . . Part Schematics Acquired . | . . . . Parts Built . | . . . . Authchips . | . . . . Time . | . . . . Total Part Build Rating . | . . . . Parts Repaired . | . . . . Time . | . . . . Parts Recycled . | . . . . Recycled Matter . | . . . . Retrieved Matter . | . . . . Retrieved Components . | . . . . Parts Scanalyzed . | . . . . Part Schematics Acquired . | . . . . Parts Damaged . | . . . . Bothacking | -11 -10 -10 -10 ------------ Run | Yrd Mat Min Sub Used RIF Installer . | . . . . Robots Hacked . | . . . . Non-combat . | . . . . Combat . | . . . . Robot Hacks Applied . | . . . . Relay Couplers Released . | . . . . Fabnet Peak Effective % . | . . . . Robots Rewired . | . . . . Allies Hacked . | . . . . Hacks Repelled . | . . . . Allies | -11 -10 -10 -10 -------- Run | Yrd Mat Min Sub Total Allies . | . . . . Largest Group . | . . . . Highest-Rated Group . | . . . . Highest-Rated Ally . | . . . . Total Orders . | . . . . Ally Attacks . | . . . . Total Damage . | . . . . Kills . | . . . . Allies Corrupted . | . . . . Allies Melted . | . . . . Intel | -11 -10 -10 -10 ------- Run | Yrd Mat Min Sub Active Infowar (turns) 51 | . 48 . 3 Sensors 51 | . 48 . 3 Robot Analysis Total . | . . . . Derelict Logs Recovered . | . . . . Drone Launches . | . . . . Drone Recoveries . | . . . . Exploration | -11 -10 -10 -10 ------------- Run | Yrd Mat Min Sub Turns Passed 927 | 74 528 49 276 Spaces Moved 434 | 43 233 29 129 Core 9 | 7 . . 2 Treads 425 | 36 233 29 127 Legs . | . . . . Wheels . | . . . . Hover . | . . . . Flight . | . . . . Fastest Speed 50 | 50 160 160 50 Average Speed 157 | 142 160 160 158 Slowest Speed 160 | 160 160 160 160 Overloaded Moves . | . . . . Propulsion Burnouts . | . . . . Robots Hopped . | . . . . Potential Cave-ins . | . . . . Cave-ins Triggered . | . . . . Exploration Rate (%) 15 | 4 41 8 7 Regions Visited 3 Branch Regions 2 Pre-discovered Areas . | . . . . Known Exits Taken 2 | . 1 1 . Unknown Exits Taken 1 | 1 . . . Scrap Searched . | . . . . Spaces Dug . | . . . . Terrain Destroyed 58 | . 27 . 31 Melee . | . . . . Projectile . | . . . . AOE 58 | . 27 . 31 Terrain Rammed . | . . . . Walls Destroyed . | . . . . Machines Disabled . | . . . . Actions | -11 -10 -10 -10 --------- Run | Yrd Mat Min Sub Total 570 | 56 319 30 165 Wait 35 | . 25 1 9 Move 431 | 42 232 28 129 Hop . | . . . . Pick Up 18 | 8 9 . 1 Fast Attach . | . . . . Attach 10 | 6 2 . 2 Detach . | . . . . Swap 10 | . 8 . 2 Drop 2 | . 2 . . Fire 64 | . 41 1 22 Melee . | . . . . Ram . | . . . . Kick . | . . . . Crush . | . . . . Escape Stasis . | . . . . Rewire . | . . . . Trap . | . . . . Miscellaneous . | . . . . Route ------- -11/Scrapyard -10/Materials -10/Mines -10/Subcaves History --------- Turn | Location | Event 26 | -11/Scrapyard | Discovered new exit (range 16) 75 | -11/Scrapyard | Entered Materials 318 | -10/Materials | Build established: Mutant 579 | -10/Materials | Discovered new exit (range 11) 600 | -10/Materials | Identified exit to Mines 603 | -10/Materials | Entered Mines 642 | -10/Mines | Discovered new exit (range 6) 650 | -10/Mines | Identified exit to Subcaves 652 | -10/Mines | Entered Subcaves 653 | -10/Subcaves | Approached by a straggling Scientist 919 | -10/Subcaves | Core integrity fell below 50% 925 | -10/Subcaves | Core integrity fell below 20% 928 | -10/Subcaves | Destroyed by J6-0XT(R) with Subdweller Laser Last Messages --------------- Acquired 19 matter. Acquired 7 matter. Subatomizers dissect the Sub. Optics. CT-891(c): "I think it's somewhere northeast of here" 2F-5QC(u) builds Twisted Machinery. The unstable cave ceiling collapses. Lgt. Treads destroyed. Lgt. Ion Engine destroyed. LF-LKL(R) suffers critical hit (Burn). Disposable Heat Sink melted. Sub. Laser melted. LF-LKL(R) destroyed. Switching to secondary target: J6-0XT(R). Lgt. Treads destroyed. Acquired 33 matter. Med. Laser destroyed. Heat Sink destroyed. 2G-4YF(R) destroyed. Acquired Scrap Shield. Map ----- +----------------------------------------------------+ | ??????????????????????????????????????????? | | ??????????????????????????????????????????? | | ??????????????????????????????????????????? | | ??????????????????????????????????????????? | | ??????????????????????????????????????????? | | ??????????????????????????????????????????? | | ??????????????????????????????????????????? | | ??????????????????????????????????????????? | | ??????????????????????????????????????????? | | ??????????????????????????????????????????? | | ??????????????????????????????????###?????? | | ??????????????????????????????????# #?????? | | ???????????????????????????????#### ####??? | | ???????????????????????????????# ###? | | ???????????????????????????????# ""## | | ???????????????????????????????# ## " ""# | | ???????????????????????????????# ## " "### | | ???????????????????????????????# "##?? | | ???????????????????????????????#" ### "#??? | | ???????????????????????#########"" ## ##??? | | ????????????????????####" # ##" "&####???? | | ??????????????###???# """% ## "%##??????? | | ??????????????#""??##"" " "#"&##???????? | | ??????????????#""### " #" " ##????????? | | ??????????????#" *R= "" ### "# #????????? | | ??????????????#" &@%!" "##"## %##???????? | | ??????????????## !##"" ####"%" #???????? | | ???????????????# ### "##"""&" #???????? | | ???????????????## #?# ###"""" ""#???????? | | ????????????????# "#?# #?###" ####???????? | | ???????????????## "#?# #?#"" #??????????? | | ???????????????# ##??# ##" #??????????? | | ???????????????# #???# # ####???????? | | ???????????????## ##????# #???????? | | ???????????????# ##????# " ##??????? | | ???????????????## #???## #??????? | | ???????????????# #??## #??????? | | ???????????????# ##??# ##???###? | | ??????????????## #### ## #???#" ?? | | ?????????????## #### #??# "#?? | | ?????????????# # # # ###"""##? | | ?????????????# # ! = & "" ""## | | ?????????????# # &! & = """"""""" # | | ?????????????# # ## """" "" # | | ?????????????##### # # ###""" #### # | | ???????????????## #####?#""" #####?????? | | ???????????????# # ?# ""##?????????? | | ??????????????# """"##??????????? | | ??????????????# # """ #???????????? | | ??????????????# ## ###"" #???????????? | +----------------------------------------------------+ Best States ------------- Heat Dissipation 35 Energy Generation 10 Energy Capacity 250 Matter Stores 300 Matter Capacity 300 Sight Range 16 Robot Scan Range 14 Terrain Scan Density 10 Evasion (%) 40 Recoil Reduction 2 Item Schematics ----------------- None Robot Schematics ------------------ None Fabricated ------------ Nothing Repaired ---------- Nothing Alien Tech Used ----------------- None Achievements -------------- None Challenges ------------ None Game ------ Seed BattleAnalysisSystem Manual? 0 Play Time 00:11:32 Cumulative 11.1 hours Start 2025.06.15 @ 15:34:22 End 2025.06.15 @ 15:43:06 Sessions 1 Manual Loads 0 Difficulty Rogue Special Mode None Game No. 14 Rogue 14 Adventurer 0 Explorer 0 Win Type - Total 0 Types 0/0/0/0/0/0/0/0/0/0 Lore% 8 Gallery% 12 Achievement% 11 Wizard Run 0 Options --------- Layout 1 ASCII 0 Keyboard 0 Movement Mouse Keybinds 0 Fullscreen 1 Font 32/SmallcapsGlow Map View 50x35 Zoom Use 0% Tactical HUD 0 Map Filters NONE Filters NONE Steam 1 RUN: 36837fac-d310-4d9b-98eb-5577857b2b56